bitfinex/quotes_SOLUSD_20260226
["timestamp","ask_amount","ask_price","bid_price","bid_amount"]
[1772067598368,11.26645409,88.76,88.736,3.55703376]
[1772067598591,4.14718933,88.759,88.736,3.55703376]
[1772067598893,4.14718933,88.759,88.731,11.26996902]
[1772067599191,4.14718933,88.749,88.711,3.55703376]
[1772067599395,4.14718933,88.749,88.703,3.55703376]
[1772067599587,39.43229455,88.76,88.694,11.27470808]
[1772067599588,4.14718933,88.727,88.694,11.27470808]
[1772067599785,4.14718933,88.727,88.695,3.55703376]
[1772067599982,0.28432314,88.748,88.701,3.55703376]
[1772067599983,11.26995898,88.732,88.701,3.55703376]
[1772067600195,4.14718933,88.734,88.701,3.55703376]
[1772067600397,4.14718933,88.753,88.706,0.14216157]
[1772067600701,11.26709782,88.754,88.709,3.55703376]
[1772067600997,4.14718933,88.753,88.721,3.55703376]
[1772067601790,4.14718933,88.749,88.71,3.90549186]
[1772067601993,4.14718933,88.749,88.707,11.27297767]
[1772067602590,4.14718933,88.739,88.703,11.27356664]
[1772067602784,4.14718933,88.729,88.691,3.55703376]
[1772067602986,3.90549186,88.72,88.68,7.46252562]
[1772067603205,4.14718933,88.719,88.681,3.55703376]
[1772067603388,4.14718933,88.739,88.701,3.55703376]
[1772067603781,4.14718933,88.737,88.702,3.55703376]
[1772067604299,4.14718933,88.737,88.7,3.90549186]
[1772067604493,4.14718933,88.729,88.69,3.90549186]
[1772067604688,4.14718933,88.729,88.681,14.83340637]
[1772067604891,4.14718933,88.729,88.682,3.55703376]
[1772067605086,4.14718933,88.729,88.69,3.90549186]
[1772067605397,4.14718933,88.737,88.701,3.55703376]
[1772067606208,4.14718933,88.744,88.711,3.55703376]
[1772067606385,11.26773259,88.749,88.721,3.55703376]
[1772067607392,11.26773259,88.749,88.721,14.82828498]
[1772067607894,4.14718933,88.76,88.722,3.55703376]
[1772067608102,0.2,88.81,88.721,39.44947283]
[1772067608103,4.14718933,88.769,88.731,3.55703376]
[1772067608698,4.14718933,88.769,88.741,3.55703376]
[1772067609593,4.14718933,88.769,88.742,11.26862139]
[1772067609780,11.26532083,88.768,88.742,11.26862139]
[1772067610107,4.14718933,88.767,88.741,3.55703376]
[1772067610323,4.14718933,88.767,88.733,11.26973537]
[1772067610478,11.26532083,88.768,88.712,14.82946589]
[1772067610479,4.14718933,88.749,88.712,14.82946589]
[1772067610682,4.14718933,88.749,88.713,3.55703376]
[1772067611403,4.14718933,88.757,88.72,3.90549186]
[1772067611580,45.03140592,88.827,88.74,3.90549186]
[1772067611581,4.14718933,88.767,88.74,3.90549186]
[1772067611781,4.14718933,88.767,88.739,3.55703376]
[1772067612300,11.26557465,88.766,88.739,3.55703376]
[1772067612501,15.41276398,88.766,88.739,3.55703376]
[1772067614098,4.14718933,88.765,88.739,3.55703376]
[1772067617236,56.30757794,88.798,88.705,62.2]
[1772067617237,4.14718933,88.763,88.72,7.46252562]
[1772067617535,4.14718933,88.763,88.722,3.55703376]
[1772067617713,4.14718933,88.763,88.731,3.55703376]
[1772067617907,4.14718933,88.763,88.721,11.27128864]
[1772067618113,11.26582848,88.764,88.711,3.55703376]
[1772067618114,4.14718933,88.759,88.711,3.55703376]
[1772067619506,4.14718933,88.757,88.713,3.55703376]
[1772067621227,4.14718933,88.755,88.714,14.82921177]
[1772067621427,4.14718933,88.755,88.715,3.55703376]
[1772067623520,39.43395375,88.756,88.71,3.90645406]
[1772067623521,4.14718933,88.753,88.716,11.27192389]
[1772067623730,4.14718933,88.753,88.72,7.46348782]
[1772067623930,4.14718933,88.753,88.721,3.55703376]
[1772067626021,4.14718933,88.753,88.72,3.90645406]
[1772067626022,4.24548442,88.751,88.723,3.55703376]
[1772067626825,11.2668635,88.756,88.723,3.55703376]
[1772067627340,4.24548442,88.759,88.723,3.55703376]
[1772067627716,4.24548442,88.757,88.723,3.55703376]
[1772067627923,4.24548442,88.757,88.722,39.44906561]
[1772067627924,4.24548442,88.769,88.741,3.55703376]
[1772067628122,4.24548442,88.767,88.743,3.55703376]
[1772067628417,11.26484102,88.772,88.743,3.55703376]
[1772067629126,4.24548442,88.769,88.725,3.55703376]
[1772067629818,0.28432314,88.758,88.71,3.90645406]
[1772067630024,4.24548442,88.747,88.702,3.55703376]
[1772067630242,4.24548442,88.739,88.701,11.27383005]
[1772067630551,4.24548442,88.729,88.681,3.55703376]
[1772067630844,4.24548442,88.729,88.683,3.55703376]
[1772067632030,3.90645406,88.73,88.685,3.55703376]
[1772067632031,4.15735672,88.727,88.685,3.55703376]
[1772067632336,4.15735672,88.719,88.676,54.31703376]
[1772067632648,3.90645406,88.72,88.676,54.31703376]
[1772067632649,4.15735672,88.711,88.676,3.55703376]
[1772067632832,4.15735672,88.709,88.67,3.90645406]
[1772067633035,4.15735672,88.709,88.671,3.55703376]
[1772067633428,11.27294043,88.708,88.673,11.27736271]
[1772067633634,4.15735672,88.707,88.671,3.55703376]
[1772067634333,4.15735672,88.707,88.673,3.55703376]
[1772067635938,4.15735672,88.707,88.675,3.55703376]
[1772067636133,4.15735672,88.727,88.691,3.55703376]
[1772067637169,4.15735672,88.725,88.691,3.55703376]
[1772067637332,4.15735672,88.719,88.681,3.55703376]
[1772067637951,11.27166978,88.718,88.691,3.55703376]
[1772067638157,11.27166978,88.718,88.692,3.55703376]
[1772067638660,11.2710733,88.723,88.692,3.55703376]
[1772067639258,4.15735672,88.725,88.692,3.55703376]
[1772067639461,11.27090753,88.724,88.692,3.55703376]
[1772067640354,4.15735672,88.746,88.711,3.55703376]
[1772067640645,4.15735672,88.746,88.72,7.46348782]
[1772067642250,4.15735672,88.744,88.713,3.55703376]
[1772067642454,4.15735672,88.744,88.693,28.18711735]
[1772067642455,4.15735672,88.744,88.694,3.55703376]
[1772067642661,4.15735672,88.739,88.701,3.55703376]
[1772067645751,4.15735672,88.737,88.703,3.55703376]
[1772067646153,4.15735672,88.737,88.71,3.90645406]
[1772067647362,4.15735672,88.737,88.711,11.2725592]
[1772067647764,4.15735672,88.735,88.711,11.2725592]
[1772067649661,4.15735672,88.735,88.711,14.82959296]
[1772067650042,15.42512019,88.749,88.721,3.55703376]
[1772067651262,4.15735672,88.739,88.701,3.55703376]
[1772067651657,4.15735672,88.76,88.721,3.55703376]
[1772067651860,4.15735672,88.759,88.721,3.55703376]
[1772067653455,4.15735672,88.759,88.714,3.55703376]
[1772067653659,4.15735672,88.757,88.714,14.82918007]
[1772067654674,4.15735672,88.749,88.706,3.55703376]
[1772067654973,4.15735672,88.749,88.704,11.27341829]
[1772067655275,39.43306518,88.758,88.698,3.55703376]
[1772067655276,4.15735672,88.739,88.698,3.55703376]
[1772067655854,3.90645406,88.74,88.698,3.55703376]
[1772067655855,4.23936751,88.737,88.698,3.55703376]
[1772067656567,4.23936751,88.737,88.701,3.55703376]
[1772067659062,11.26938333,88.736,88.711,3.55703376]
[1772067659460,4.23936751,88.719,88.677,3.55703376]
[1772067659663,4.23936751,88.699,88.66,3.90645406]
[1772067659968,4.23936751,88.689,88.65,3.90645406]
[1772067660375,4.23936751,88.698,88.661,3.55703376]
[1772067661577,11.27433847,88.697,88.661,3.55703376]
[1772067661765,4.23936751,88.696,88.661,3.55703376]
[1772067662361,4.23936751,88.696,88.66,3.90645406]
[1772067663567,4.23936751,88.696,88.658,11.27929145]
[1772067664665,56.35812314,88.719,88.65,3.90645406]
[1772067664666,4.23936751,88.689,88.651,11.28008522]
[1772067665166,4.23936751,88.689,88.652,3.55703376]
[1772067667484,11.27548259,88.688,88.653,11.27993412]
[1772067667787,4.23936751,88.687,88.653,11.27993412]
[1772067667964,4.23936751,88.687,88.654,3.55703376]
[1772067668169,4.23936751,88.713,88.68,3.90645406]
[1772067668381,11.27192389,88.716,88.68,3.90645406]
[1772067668382,4.23936751,88.711,88.68,3.90645406]
[1772067668988,4.23936751,88.711,88.671,3.55703376]
[1772067669487,4.23936751,88.709,88.672,11.27751714]
[1772067671795,4.23936751,88.707,88.672,11.27751714]
[1772067672500,0.28432314,88.704,88.654,3.55703376]
[1772067672677,39.45529151,88.708,88.65,3.90645406]
[1772067672678,4.23936751,88.689,88.65,3.90645406]
[1772067673078,4.23936751,88.689,88.647,3.69383402]
[1772067673278,4.23936751,88.689,88.661,3.55703376]
[1772067674199,4.23936751,88.688,88.66,3.90645406]
[1772067674392,4.23936751,88.702,88.671,3.55703376]
[1772067675004,4.23936751,88.702,88.661,3.55703376]
[1772067675580,4.23936751,88.702,88.67,3.90645406]
[1772067675780,4.23936751,88.702,88.671,3.55703376]
[1772067676301,11.27383005,88.701,88.673,3.55703376]
[1772067678894,4.23936751,88.7,88.673,3.55703376]
[1772067679505,4.23936751,88.7,88.675,3.55703376]
[1772067683495,11.27408426,88.699,88.675,3.55703376]
[1772067684604,11.27408426,88.699,88.677,3.55703376]
[1772067685403,4.23936751,88.708,88.681,3.55703376]
[1772067688803,11.27299338,88.708,88.682,11.27624546]
[1772067689005,4.26303726,88.707,88.682,11.27624546]
[1772067689200,4.26303726,88.707,88.682,14.83327922]
[1772067690007,4.26303726,88.743,88.7,3.91018084]
[1772067690204,4.26303726,88.743,88.694,3.55703376]
[1772067690205,4.26303726,88.739,88.694,3.55703376]
[1772067691309,4.26303726,88.729,88.684,11.27599115]
[1772067691486,4.26303726,88.729,88.685,3.55703376]
[1772067691685,4.26303726,88.729,88.69,3.91018084]
[1772067691888,4.32481355,88.727,88.692,14.83200782]
[1772067692099,4.32481355,88.727,88.688,3.55703376]
[1772067692301,4.32481355,88.727,88.684,3.55703376]
[1772067693203,4.32481355,88.727,88.691,3.55703376]
[1772067693711,39.44639797,88.728,88.691,3.55703376]
[1772067693712,11.27065347,88.726,88.691,3.55703376]
[1772067693913,4.32481355,88.725,88.691,3.55703376]
[1772067694114,4.32481355,88.725,88.693,3.55703376]
[1772067697601,4.32481355,88.723,88.693,3.55703376]
[1772067698597,4.32481355,88.723,88.69,3.91018084]
[1772067698798,4.32481355,88.723,88.691,3.55703376]
[1772067701312,4.32481355,88.721,88.685,3.55703376]
[1772067701511,3.91018084,88.71,88.662,3.55703376]
[1772067701818,4.32481355,88.709,88.664,3.55703376]
[1772067702127,3.91018084,88.71,88.648,3.69383402]
[1772067702128,4.32481355,88.701,88.657,11.27939022]
[1772067702426,4.32481355,88.701,88.65,3.55703376]
[1772067702427,4.32481355,88.699,88.653,14.83695883]
[1772067703116,4.32481355,88.689,88.65,3.91018084]
[1772067703310,4.32481355,88.689,88.605,5.36086188]
[1772067703311,4.32481355,88.679,88.63,3.91018084]
[1772067703512,4.32481355,88.679,88.631,3.55703376]
[1772067704208,4.32481355,88.679,88.63,3.91018084]
[1772067704209,4.32481355,88.679,88.64,3.91018084]
[1772067704517,4.32481355,88.686,88.651,3.55703376]
[1772067704728,4.32481355,88.684,88.651,3.55703376]
[1772067705421,11.2761183,88.683,88.651,3.55703376]
[1772067705622,4.32481355,88.682,88.651,3.55703376]
[1772067706928,4.32481355,88.682,88.643,3.55703376]
[1772067707124,4.32481355,88.698,88.671,3.55703376]
[1772067707327,39.45484674,88.709,88.644,11.28107937]
[1772067707328,4.32481355,88.706,88.68,3.91018084]
[1772067707524,11.27332168,88.705,88.68,3.91018084]
[1772067707707,11.27332168,88.705,88.68,7.4672146]
[1772067708407,4.32481355,88.704,88.68,7.4672146]
[1772067708603,4.32481355,88.704,88.673,3.55703376]
[1772067708801,4.32481355,88.704,88.644,3.69383402]
[1772067708802,4.32481355,88.699,88.66,3.91018084]
[1772067709003,4.32481355,88.697,88.65,7.4672146]
[1772067709219,4.32481355,88.689,88.65,3.91018084]
[1772067709824,4.32481355,88.687,88.65,3.91018084]
[1772067711228,0.28432314,88.714,88.661,3.55703376]
[1772067711530,4.32481355,88.709,88.68,7.4672146]
[1772067711726,15.59634776,88.72,88.691,3.55703376]
[1772067712038,11.27153421,88.72,88.7,3.91018084]
[1772067712209,11.27153421,88.72,88.67,3.91018084]
[1772067712210,4.32481355,88.719,88.67,3.91018084]
[1772067712408,4.32481355,88.709,88.67,7.4672146]
[1772067712609,4.32481355,88.709,88.67,3.91018084]
[1772067712904,4.32481355,88.703,88.66,3.91018084]
[1772067713102,95.80715187,88.72,88.653,3.55703376]
[1772067713103,4.32481355,88.699,88.653,3.55703376]
[1772067713619,4.32481355,88.697,88.654,11.27980688]
[1772067714109,11.27374439,88.702,88.671,3.55703376]
[1772067714315,11.27374439,88.702,88.68,3.91018084]
[1772067715027,11.27374439,88.702,88.678,3.55703376]
[1772067715227,15.59855794,88.702,88.671,3.55703376]
[1772067715431,15.59855794,88.702,88.658,3.55703376]
[1772067715432,4.32481355,88.701,88.658,3.55703376]
[1772067715612,4.32481355,88.701,88.66,3.91018084]
[1772067715808,4.08833374,88.699,88.66,3.91018084]
[1772067718117,4.08833374,88.697,88.66,3.91018084]
[1772067718322,4.08833374,88.697,88.655,11.27967965]
[1772067718826,4.08833374,88.697,88.654,3.55703376]
[1772067719431,4.08833374,88.697,88.655,11.27967965]
[1772067719743,39.45973978,88.698,88.63,3.91018084]
[1772067719744,4.08833374,88.679,88.63,3.91018084]
[1772067719911,4.08833374,88.679,88.631,3.55703376]
[1772067720112,4.08833374,88.677,88.631,3.55703376]
[1772067720422,4.08833374,88.669,88.63,3.91018084]
[1772067721232,4.08833374,88.669,88.632,3.55703376]
[1772067722365,15.365215,88.677,88.641,3.55703376]
[1772067722521,11.27688126,88.677,88.641,3.55703376]
[1772067722720,4.08833374,88.676,88.641,3.55703376]
[1772067722947,4.08833374,88.713,88.661,3.55703376]
[1772067723142,4.08833374,88.716,88.69,3.91018084]
[1772067723342,4.08833374,88.728,88.7,3.91018084]
[1772067723942,4.08833374,88.728,88.701,3.55703376]
[1772067724248,4.08833374,88.738,88.71,3.91018084]
[1772067724437,11.26925634,88.737,88.71,3.91018084]
[1772067724832,4.08833374,88.748,88.72,7.4672146]
[1772067725239,4.08833374,88.748,88.72,14.01921594]
[1772067725733,4.08833374,88.756,88.73,10.46218218]
[1772067725930,4.37265688,88.769,88.731,3.55703376]
[1772067726541,4.08833374,88.759,88.71,10.46218218]
[1772067727065,4.08833374,88.759,88.72,10.46218218]
[1772067727732,4.08833374,88.759,88.72,14.01921594]
[1772067728457,4.08833374,88.757,88.72,10.46218218]
[1772067728829,4.08833374,88.779,88.75,10.46218218]
[1772067729145,0.28432314,88.774,88.73,10.46218218]
[1772067729361,4.08833374,88.769,88.73,10.46218218]
[1772067729949,4.08833374,88.769,88.73,14.01921594]
[1772067730657,4.08833374,88.767,88.74,10.46218218]
[1772067730856,4.08833374,88.767,88.73,25.28927795]
[1772067731074,4.08833374,88.767,88.73,14.01921594]
[1772067731259,4.08833374,88.767,88.73,10.46218218]
[1772067732771,39.42862292,88.768,88.73,10.46218218]
[1772067732772,4.08833374,88.765,88.73,10.46218218]
[1772067734371,11.26557465,88.766,88.669,62.2]
[1772067734372,4.08833374,88.759,88.72,10.46218218]
[1772067734753,4.08833374,88.757,88.72,10.46218218]
[1772067735373,4.08833374,88.757,88.722,3.55703376]
[1772067735668,4.08833374,88.757,88.721,11.27128864]
[1772067735669,11.2659767,88.763,88.731,3.55703376]
[1772067736061,15.35431044,88.763,88.731,3.55703376]
[1772067736262,4.08833374,88.762,88.731,3.55703376]
[1772067736849,11.26620925,88.761,88.731,3.55703376]
[1772067737552,4.37265688,88.789,88.751,3.55703376]
[1772067737750,4.08833374,88.787,88.751,3.55703376]
[1772067738760,0.2,88.79,88.77,10.46218218]
[1772067738955,0.2,88.79,88.77,14.01921594]
[1772067739160,0.2,88.81,88.781,3.55703376]
[1772067739379,0.2,88.81,88.79,10.46218218]
[1772067739571,11.25852948,88.822,88.8,10.46218218]
[1772067739772,11.25852948,88.822,88.791,3.55703376]
[1772067740163,4.08833374,88.819,88.78,10.46218218]
[1772067740459,4.08833374,88.819,88.771,11.26494012]
[1772067740460,4.08833374,88.819,88.771,14.62197388]
[1772067740655,4.08833374,88.819,88.781,3.35703376]
[1772067741075,4.08833374,88.817,88.77,10.46218218]
[1772067741464,4.08833374,88.817,88.77,13.81921594]
[1772067742276,4.08833374,88.817,88.781,3.35703376]
[1772067743083,4.08833374,88.809,88.77,10.46218218]
[1772067743264,4.08833374,88.807,88.758,7.05086778]
[1772067743468,4.08833374,88.769,88.72,10.45036286]
[1772067743786,4.08833374,88.781,88.741,3.35703376]
[1772067744080,4.08833374,88.781,88.751,3.35703376]
[1772067744882,10.45036286,88.8,88.759,3.35703376]
[1772067744883,4.37265688,88.799,88.759,3.35703376]
[1772067745959,10.45036286,88.8,88.759,3.35703376]
[1772067745960,4.6142847,88.797,88.759,3.35703376]
[1772067746156,4.6142847,88.797,88.75,13.80739662]
[1772067746382,4.32996156,88.789,88.75,13.80739662]
[1772067746964,4.32996156,88.789,88.753,11.2671109]
[1772067747166,4.32996156,88.759,88.72,10.45036286]
[1772067748175,4.32996156,88.757,88.716,3.69383402]
[1772067748372,4.32996156,88.757,88.713,11.27221999]
[1772067748875,4.32996156,88.757,88.72,10.45036286]
[1772067749575,4.32996156,88.755,88.72,10.45036286]
[1772067750267,11.26557465,88.766,88.731,3.35703376]
[1772067750786,4.32996156,88.798,88.761,3.35703376]
[1772067751188,4.32996156,88.798,88.75,10.45036286]
[1772067751365,4.32996156,88.789,88.75,10.45036286]
[1772067751767,4.1940715,88.781,88.741,3.35703376]
[1772067751991,11.26278325,88.788,88.76,10.45036286]
[1772067752373,4.1940715,88.799,88.77,10.45036286]
[1772067752887,4.1940715,88.799,88.76,10.45036286]
[1772067753070,95.6959346,88.823,88.73,10.45036286]
[1772067753071,4.1940715,88.769,88.73,10.45036286]
[1772067753270,4.1940715,88.759,88.72,10.45036286]
[1772067753487,4.1940715,88.749,88.71,13.80739662]
[1772067755890,4.1940715,88.747,88.711,11.2725592]
[1772067756895,4.1940715,88.747,88.712,3.35703376]
[1772067758271,4.1940715,88.745,88.713,11.27230507]
[1772067759595,4.1940715,88.745,88.713,14.62933883]
[1772067760498,4.1940715,88.753,88.721,3.35703376]
[1772067760792,11.26735172,88.752,88.721,3.35703376]
[1772067760974,4.1940715,88.751,88.721,3.35703376]
[1772067761768,10.45036286,88.75,88.71,10.45036286]
[1772067761970,4.1940715,88.729,88.68,13.80739662]
[1772067762186,4.1940715,88.709,88.672,3.35703376]
[1772067762386,4.1940715,88.709,88.661,14.63590871]
[1772067762572,4.1940715,88.707,88.661,14.63590871]
[1772067762773,4.1940715,88.699,88.661,14.63590871]
[1772067763407,4.1940715,88.699,88.656,11.27949261]
[1772067763571,39.45529151,88.708,88.643,3.69383402]
[1772067763572,4.1940715,88.689,88.643,3.69383402]
[1772067763892,4.1940715,88.689,88.642,11.2813339]
[1772067763893,4.1940715,88.689,88.645,3.69383402]
[1772067764201,4.1940715,88.689,88.646,3.35703376]
[1772067764593,4.1940715,88.698,88.66,13.80739662]
[1772067764898,4.1940715,88.698,88.66,10.45036286]
[1772067765204,4.1940715,88.698,88.651,3.35703376]
[1772067765907,4.1940715,88.689,88.642,11.2812586]
[1772067766072,4.1940715,88.659,88.61,10.55036286]
[1772067766278,4.1940715,88.649,88.61,0.1]
[1772067766491,11.281843,88.638,88.61,0.1]
[1772067766689,4.1940715,88.637,88.61,0.1]
[1772067767301,4.1940715,88.689,88.62,10.45036286]
[1772067767506,4.47839464,88.669,88.621,3.35703376]
[1772067767804,4.1940715,88.669,88.63,10.45036286]
[1772067768001,4.1940715,88.669,88.621,3.35703376]
[1772067768383,4.1940715,88.669,88.631,3.35703376]
[1772067768614,4.1940715,88.667,88.632,11.28260673]
[1772067768995,4.1940715,88.667,88.633,3.35703376]
[1772067769198,15.47095276,88.677,88.633,3.35703376]
[1772067769393,4.1940715,88.676,88.64,10.45036286]
[1772067770113,45.09296392,88.706,88.632,11.28260673]
[1772067770114,11.27633535,88.682,88.651,3.35703376]
[1772067770320,4.1940715,88.687,88.651,3.35703376]
[1772067770321,15.46978783,88.687,88.651,3.35703376]
[1772067770686,4.1940715,88.686,88.652,11.28006136]
[1772067771015,4.1940715,88.679,88.63,13.80739662]
[1772067771409,4.1940715,88.679,88.631,3.35703376]
[1772067772010,4.1940715,88.679,88.64,13.80739662]
[1772067772895,4.1940715,88.677,88.64,10.45036286]
[1772067773090,4.1940715,88.677,88.634,11.28229952]
[1772067773419,0.28432314,88.662,88.62,10.45036286]
[1772067773724,39.46863933,88.678,88.62,10.45036286]
[1772067773725,4.1940715,88.659,88.62,10.45036286]
[1772067774713,4.1940715,88.657,88.62,10.45036286]
[1772067775819,4.1940715,88.657,88.611,14.64225379]
[1772067776534,4.34233987,88.655,88.611,3.35703376]
[1772067776700,0.28432314,88.654,88.611,3.35703376]
[1772067776904,4.34233987,88.649,88.61,10.55036286]
[1772067777094,4.34233987,88.649,88.61,0.1]
[1772067777308,4.34233987,88.649,88.612,3.35703376]
[1772067777508,4.34233987,88.682,88.631,3.35703376]
[1772067777714,4.34233987,88.669,88.62,10.45036286]
[1772067777927,4.34233987,88.659,88.611,11.2852806]
[1772067778103,4.34233987,88.659,88.612,3.35703376]
[1772067778721,4.34233987,88.657,88.621,11.28400717]
[1772067780002,4.34233987,88.657,88.62,13.80739662]
[1772067780199,4.34233987,88.657,88.611,14.64221219]
[1772067780605,4.34233987,88.649,88.61,0.1]
[1772067780800,4.34233987,88.649,88.61,11.38536878]
[1772067781006,11.27993412,88.653,88.621,3.35703376]
[1772067781325,4.34233987,88.658,88.63,10.45036286]
[1772067781733,4.34233987,88.657,88.621,3.35703376]
[1772067781940,4.34233987,88.649,88.61,10.55036286]
[1772067782119,11.279334,88.658,88.621,3.35703376]
[1772067782318,11.279334,88.658,88.63,10.45036286]
[1772067782726,4.34233987,88.663,88.623,3.35703376]
[1772067782919,4.34233987,88.661,88.623,3.35703376]
[1772067783325,4.34233987,88.659,88.623,3.35703376]
[1772067784240,4.34233987,88.657,88.624,11.2836252]
[1772067785821,4.34233987,88.655,88.619,11.28413678]
[1772067786118,4.34233987,88.655,88.61,10.55036286]
[1772067786320,4.34233987,88.655,88.611,11.2852806]
[1772067787838,4.34233987,88.653,88.62,10.45036286]
[1772067788022,4.34233987,88.658,88.621,3.35703376]
[1772067788350,4.34233987,88.658,88.611,11.2852806]
[1772067789640,0.14216157,88.653,88.611,11.2852806]
[1772067789818,38.6479717,88.66,88.61,10.55036286]
[1772067789819,4.34233987,88.647,88.61,0.1]
[1772067790018,4.34233987,88.639,88.61,0.1]
[1772067790349,4.34233987,88.639,88.6,0.1]
[1772067790350,4.34233987,88.619,88.582,3.55703376]
[1772067791143,4.34233987,88.619,88.58,10.55036286]
[1772067791441,4.34233987,88.619,88.581,3.55703376]
[1772067791640,4.34233987,88.619,88.58,15.30748515]
[1772067791641,4.34233987,88.639,88.591,3.55703376]
[1772067791834,4.34233987,88.629,88.593,3.55703376]
[1772067792140,109.46086188,88.679,88.592,11.28770092]
[1772067792141,39.48155082,88.649,88.611,4.171337]
[1772067793242,0.28432314,88.648,88.605,4.171337]
[1772067793427,3.91827851,88.64,88.593,4.171337]
[1772067793628,4.34233987,88.639,88.593,3.071337]
[1772067793829,4.34233987,88.627,88.593,3.071337]
[1772067794546,4.34233987,88.627,88.587,11.28828696]
[1772067795650,11.28337056,88.626,88.587,15.45962396]
[1772067795843,4.34233987,88.625,88.587,15.45962396]
[1772067796041,4.34233987,88.619,88.58,0.1]
[1772067796240,3.91827851,88.61,88.58,0.1]
[1772067796443,4.34233987,88.609,88.58,0.1]
[1772067796750,4.34233987,88.599,88.562,4.171337]
[1772067796946,3.91827851,88.59,88.56,0.1]
[1772067797126,4.34233987,88.579,88.54,0.1]
[1772067797329,4.34233987,88.569,88.54,0.1]
[1772067797527,4.34233987,88.559,88.52,0.1]
[1772067797727,3.91827851,88.56,88.495,4.171337]
[1772067797728,4.34233987,88.529,88.495,4.171337]
[1772067797950,4.34233987,88.519,88.485,4.171337]
[1772067798153,3.91827851,88.52,88.485,4.171337]
[1772067798353,15.63564971,88.548,88.501,4.171337]
[1772067798652,11.29330984,88.548,88.501,4.171337]
[1772067798955,4.34233987,88.549,88.511,4.171337]
[1772067799251,4.34233987,88.548,88.501,4.171337]
[1772067799426,4.34233987,88.539,88.501,4.171337]
[1772067799855,11.29458537,88.538,88.503,4.171337]
[1772067800049,4.34233987,88.539,88.503,4.171337]
[1772067800754,28.22870318,88.563,88.511,4.171337]
[1772067800755,10.51311967,88.55,88.511,4.171337]
[1772067800972,4.34233987,88.559,88.52,10.51311967]
[1772067801250,4.34233987,88.557,88.52,10.51311967]
[1772067801654,4.34233987,88.557,88.521,4.171337]
[1772067801829,4.34233987,88.577,88.541,4.171337]
[1772067802947,4.34233987,88.589,88.551,4.171337]
[1772067803150,4.34233987,88.589,88.56,10.51311967]
[1772067803354,4.34233987,88.6,88.561,4.171337]
[1772067803545,4.34233987,88.6,88.57,10.51311967]
[1772067803752,4.34233987,88.597,88.551,11.29292723]
[1772067803952,4.34233987,88.597,88.56,10.51311967]
[1772067804856,11.28599939,88.606,88.57,10.51311967]
[1772067805041,4.34233987,88.605,88.571,4.171337]
[1772067805356,4.34233987,88.605,88.57,10.51311967]
[1772067805357,4.34233987,88.605,88.57,10.49782553]
[1772067805851,4.48866084,88.621,88.58,10.49782553]
[1772067806052,4.48866084,88.62,88.58,14.71909875]
[1772067806246,4.48866084,88.62,88.59,10.49782553]
[1772067806949,4.48866084,88.62,88.581,4.22127322]
[1772067808338,4.48866084,88.618,88.582,11.28897518]
[1772067809161,4.48866084,88.618,88.571,11.29027676]
[1772067810359,4.48866084,88.616,88.58,10.49782553]
[1772067810653,4.48866084,88.616,88.572,4.22127322]
[1772067811038,4.48866084,88.616,88.58,10.49782553]
[1772067811236,11.28451651,88.617,88.581,4.22127322]
[1772067811551,11.28385653,88.623,88.591,4.22127322]
[1772067811857,11.28273403,88.631,88.591,4.22127322]
[1772067812253,11.28273403,88.631,88.59,10.49782553]
[1772067812254,11.28273403,88.631,88.593,4.27289834]
[1772067812456,15.46518928,88.631,88.593,4.27289834]
[1772067812847,11.28273403,88.631,88.6,10.49782553]
[1772067813061,11.28273403,88.631,88.58,28.22278031]
[1772067813062,4.18245525,88.629,88.58,10.49782553]
[1772067813358,4.18245525,88.629,88.59,10.49782553]
[1772067814355,11.28311594,88.628,88.591,11.28782833]
[1772067814556,4.18245525,88.627,88.591,11.28782833]
[1772067815459,4.18245525,88.649,88.61,10.49782553]
[1772067815961,4.18245525,88.669,88.62,10.49782553]
[1772067816148,4.18245525,88.663,88.63,10.49782553]
[1772067816349,4.18245525,88.661,88.63,10.49782553]
[1772067816552,11.27718852,88.675,88.64,10.49782553]
[1772067816746,4.18245525,88.679,88.65,10.49782553]
[1772067817441,11.27595427,88.685,88.651,4.27289834]
[1772067818962,4.18245525,88.698,88.661,4.27289834]
[1772067819153,4.18245525,88.698,88.67,10.49782553]
[1772067819361,4.18245525,88.708,88.68,10.49782553]
[1772067820066,39.45039957,88.719,88.652,39.48021476]
[1772067820067,4.18245525,88.719,88.69,14.77072387]
[1772067820560,0.2,88.74,88.711,4.27289834]
[1772067820859,11.26646311,88.759,88.73,10.49782553]
[1772067821058,4.18245525,88.77,88.74,10.49782553]
[1772067822146,4.18245525,88.77,88.705,4.55722148]
[1772067822147,4.18245525,88.769,88.705,4.55722148]
[1772067822346,0.2,88.78,88.751,4.27289834]
[1772067822548,0.2,88.78,88.752,11.26735172]
[1772067822773,0.2,88.78,88.76,10.49782553]
[1772067822942,4.18245525,88.803,88.77,10.49782553]
[1772067823145,4.18245525,88.803,88.752,39.43573102]
[1772067823146,4.18245525,88.817,88.78,10.49782553]
[1772067824759,11.25923257,88.816,88.78,10.49782553]
[1772067825347,4.18245525,88.829,88.782,4.27289834]